bitfinex/quotes_ETHUSD_20250711
["timestamp","ask_amount","ask_price","bid_price","bid_amount"]
[1752198126057,0.00058,2946.3,2946.0,0.7576]
[1752198126261,5.178,2946.2,2946.0,0.7576]
[1752198126603,0.00058,2946.3,2946.1,0.47624317]
[1752198126863,0.00058,2946.3,2946.2,0.7576]
[1752198127357,0.00058,2946.3,2946.2,1.1999]
[1752198127727,0.00058,2946.3,2946.2,10.81080629]
[1752198127966,0.00058,2946.3,2946.2,20.87260629]
[1752198130859,0.00058,2946.3,2946.2,10.8194]
[1752198131180,0.00058,2946.3,2946.2,11.2617]
[1752198131464,0.00058,2946.3,2946.2,10.1696]
[1752198132061,1.29972607,2946.7,2946.3,10.0]
[1752198132476,6.01872607,2946.7,2946.2,0.1696]
[1752198133352,6.01952607,2946.7,2946.2,0.1696]
[1752198135643,6.01872607,2946.7,2946.2,0.1696]
[1752198137051,0.4436,2946.6,2946.2,0.1696]
[1752198137276,5.177,2946.5,2946.2,0.1696]
[1752198139087,5.5412,2946.7,2946.2,0.1696]
[1752198139250,4.719,2946.7,2946.6,0.1696]
[1752198139582,0.002,2947.0,2946.6,0.6119]
[1752198139879,0.002,2947.0,2946.9,0.1696]
[1752198140279,0.002,2947.0,2946.9,0.66193396]
[1752198140948,0.002,2947.0,2946.9,0.628]
[1752198142149,0.002,2947.0,2946.9,0.66193396]
[1752198142469,0.002,2947.0,2946.9,0.628]
[1752198142788,0.002,2947.0,2946.9,1.45793396]
[1752198143497,5.178,2947.7,2946.9,1.45793396]
[1752198143656,0.002,2947.7,2947.2,0.8265]
[1752198143981,0.002,2947.7,2947.6,0.1696]
[1752198144385,0.002,2947.7,2947.6,0.9558]
[1752198144552,0.002,2947.7,2947.6,1.51122068]
[1752198145411,0.002,2947.8,2947.6,1.51122068]
[1752198145684,0.002,2947.8,2947.7,0.4584]
[1752198145880,5.176,2948.2,2947.7,0.4584]
[1752198146064,0.4626,2948.2,2947.6,0.9558]
[1752198146259,0.4626,2948.2,2948.0,0.1696]
[1752198146668,0.4626,2948.2,2948.1,0.09100483]
[1752198147152,0.4626,2948.2,2948.1,0.05100755]
[1752198148459,0.0008,2948.2,2948.1,0.05100755]
[1752198149201,0.49732607,2948.2,2948.1,0.05100755]
[1752198149403,2.45069607,2948.2,2948.1,0.05100755]
[1752198150483,7.16969607,2948.2,2948.1,0.05100755]
[1752198152572,10.52767014,2948.2,2948.1,0.05100755]
[1752198156207,20.13857643,2948.2,2948.1,0.05100755]
[1752198156577,10.52767014,2948.2,2948.1,0.05100755]
[1752198157190,7.13577,2948.2,2948.1,0.05100755]
[1752198157514,15.73559621,2948.2,2948.1,0.05100755]
[1752198157713,15.70167014,2948.2,2948.1,0.05100755]
[1752198162019,0.55,2947.5,2946.9,0.1696]
[1752198162317,4.66799245,2947.4,2947.0,1.2791]
[1752198162512,9.84199245,2947.4,2947.1,0.628]
[1752198162721,0.0008,2947.5,2947.2,1.2791]
[1752198162944,0.4626,2948.8,2947.2,1.2791]
[1752198162945,4.66799245,2948.8,2948.0,0.8207]
[1752198163098,0.042,2948.9,2948.3,10.0]
[1752198163291,0.042,2948.9,2948.5,0.8207]
[1752198163708,0.042,2948.9,2948.5,1.2791]
[1752198164321,0.042,2948.9,2948.6,0.4584]
[1752198165226,0.042,2948.9,2948.5,0.8207]
[1752198165414,5.225,2948.9,2948.7,0.4584]
[1752198165924,5.225,2948.9,2948.8,0.08799149]
[1752198167396,1.3321,2948.8,2947.6,0.4584]
[1752198167610,0.55,2948.6,2947.7,0.81432475]
[1752198167823,0.03392607,2948.5,2947.7,1.27272475]
[1752198168126,5.185,2948.4,2947.7,1.27272475]
[1752198168532,0.03392607,2948.3,2947.7,1.2388]
[1752198168827,5.184,2948.2,2947.8,0.4584]
[1752198169030,0.03392607,2948.6,2947.7,0.7804]
[1752198169031,5.184,2948.1,2947.9,0.4584]
[1752198169227,5.184,2948.1,2948.0,0.4584]
[1752198170306,5.184,2948.1,2947.7,0.7804]
[1752198170498,5.184,2948.1,2947.2,0.461]
[1752198170698,0.03392607,2948.0,2947.3,0.8167]
[1752198171835,1.13460868,2948.0,2946.9,0.7541]
[1752198172006,1.0049,2947.9,2946.9,0.7541]
[1752198172201,0.03392607,2947.8,2946.9,0.7541]
[1752198172401,5.188,2947.7,2946.9,0.7541]
[1752198172631,1.29362607,2947.6,2946.9,0.7541]
[1752198172814,0.1696,2947.4,2946.9,0.1696]
[1752198173132,9.85599245,2947.3,2946.9,0.1696]
[1752198173322,4.66799245,2947.3,2947.0,0.08030953]
[1752198173703,5.19,2947.2,2947.0,0.08030953]
[1752198173903,5.19,2947.2,2947.0,0.54130953]
[1752198174104,5.19,2947.2,2947.1,0.1696]
[1752198174302,5.19,2947.2,2947.1,0.2499068]
[1752198176117,5.19,2947.2,2947.1,0.0803068]
[1752198179417,5.67882607,2947.2,2947.1,0.0803068]
[1752198179615,6.81045792,2947.2,2947.1,0.0803068]
[1752198179939,12.19805037,2947.2,2947.1,0.0803068]
[1752198180144,12.1641243,2947.2,2947.1,0.0803068]
[1752198182753,6.9741243,2947.2,2947.1,0.0803068]
[1752198182929,12.19905037,2947.2,2947.1,0.0803068]
[1752198183130,12.1651243,2947.2,2947.1,0.0803068]
[1752198184345,6.9741243,2947.2,2947.1,0.0803068]
[1752198184548,12.19905037,2947.2,2947.1,0.0803068]
[1752198184748,12.1651243,2947.2,2947.1,0.0803068]
[1752198190158,4.66799245,2947.2,2947.1,0.0803068]
[1752198190469,9.85299245,2947.2,2947.1,0.0803068]
[1752198190656,4.66799245,2947.2,2947.1,0.0803068]
[1752198190861,9.85399245,2947.2,2947.1,0.0803068]
[1752198192358,4.66799245,2947.2,2947.1,0.0803068]
[1752198192561,4.66799245,2947.2,2947.1,1.3564068]
[1752198192724,9.85299245,2947.2,2947.1,1.5260068]
[1752198195376,4.66799245,2947.6,2947.1,1.5260068]
[1752198195576,5.183,2947.5,2947.1,1.0650068]
[1752198195762,5.183,2947.5,2947.2,0.461]
[1752198195968,5.183,2947.5,2947.3,0.6306]
[1752198196575,5.183,2947.4,2947.3,0.1696]
[1752198196947,5.184,2947.4,2947.3,0.1696]
[1752198197147,5.184,2947.4,2947.3,0.6306]
[1752198197564,5.184,2947.4,2947.3,0.1696]
[1752198198549,5.184,2947.4,2947.3,0.6306]
[1752198199484,5.184,2947.4,2947.3,0.1706]
[1752198199662,5.12289245,2947.6,2947.3,0.1706]
[1752198199663,4.66799245,2947.6,2947.3,0.1706]
[1752198199986,5.184,2947.5,2947.3,0.6316]
[1752198200582,5.184,2947.5,2947.3,0.1706]
[1752198200962,5.21792607,2947.5,2947.3,0.1706]
[1752198201885,4.66799245,2947.6,2947.4,0.4444]
[1752198202178,4.66799245,2947.6,2947.5,0.614]
[1752198202382,5.183,2947.6,2947.5,0.614]
[1752198203355,5.183,2947.6,2947.5,0.1696]
[1752198203593,4.66799245,2947.9,2947.5,0.614]
[1752198203908,4.66799245,2948.3,2947.7,0.7633]
[1752198204212,4.66799245,2948.3,2948.0,0.1696]
[1752198204347,5.183,2948.2,2948.0,0.1696]
[1752198204552,5.183,2948.2,2948.0,0.614]
[1752198205152,5.183,2948.2,2948.0,0.1696]
[1752198205353,4.66799245,2948.3,2948.0,0.1696]
[1752198205550,5.182,2948.2,2948.0,0.1696]
[1752198209183,1.7685,2948.1,2947.8,0.0339236]
[1752198209376,1.7685,2948.1,2947.3,0.001]
[1752198209377,0.55,2947.7,2947.3,0.001]
[1752198209575,5.23092607,2947.6,2947.3,0.001]
[1752198209883,5.67102607,2947.6,2947.3,0.001]
[1752198210068,0.4401,2947.5,2947.3,0.001]
[1752198210270,5.22992607,2947.4,2947.3,0.001]
[1752198210470,5.67002607,2947.4,2947.3,0.001]
[1752198210773,7.01542868,2947.4,2947.3,0.001]
[1752198214271,4.70191852,2947.4,2947.3,0.001]
[1752198214478,4.66799245,2947.4,2947.3,0.001]
[1752198214666,9.86399245,2947.4,2947.3,0.001]
[1752198217110,4.66799245,2947.4,2947.3,0.001]
[1752198217273,9.86299245,2947.4,2947.3,0.001]
[1752198218607,5.195,2947.4,2947.3,0.001]
[1752198218908,5.6351,2947.4,2947.3,0.001]
[1752198219730,7.61718868,2947.4,2947.3,0.001]
[1752198220024,10.9760834,2947.4,2947.3,0.001]
[1752198221280,7.58326261,2947.4,2947.3,0.001]
[1752198221581,10.9760834,2947.4,2947.3,0.001]
[1752198221786,7.58326261,2947.4,2947.3,0.001]
[1752198221971,10.9760834,2947.4,2947.3,0.001]
[1752198222610,7.58326261,2947.4,2947.3,0.001]
[1752198222990,10.9760834,2947.4,2947.3,0.001]
[1752198223308,7.58326261,2947.4,2947.3,0.001]
[1752198223808,10.9760834,2947.4,2947.3,0.001]
[1752198224994,7.58326261,2947.4,2947.3,0.001]
[1752198225503,10.9760834,2947.4,2947.3,0.001]
[1752198225831,7.58026261,2947.4,2947.3,0.001]
[1752198228232,2.38826261,2947.4,2947.3,0.001]
[1752198228395,1.8044,2947.4,2947.3,0.001]
[1752198228727,6.9954,2947.4,2947.3,0.001]
[1752198229920,7.02932607,2947.4,2947.3,0.001]
[1752198230795,6.9954,2947.4,2947.3,0.001]
[1752198231602,6.9944,2947.4,2947.3,0.001]
[1752198233312,0.55,2947.4,2947.3,0.001]
[1752198233537,5.739,2947.4,2947.3,0.001]
[1752198233712,5.77292607,2947.4,2947.3,0.001]
[1752198234337,6.21342607,2947.4,2947.3,0.001]
[1752198234532,0.03392607,2947.4,2947.3,0.001]
[1752198234732,0.1696,2947.6,2947.3,0.001]
[1752198234900,5.189,2947.5,2947.3,0.603]
[1752198235104,5.189,2947.5,2947.4,0.4324]
[1752198236044,0.1696,2947.9,2947.4,0.4324]
[1752198236334,5.189,2947.8,2947.5,0.4324]
[1752198236636,8.688,2948.4,2947.7,0.7858]
[1752198236637,8.138,2948.4,2947.7,0.7858]
[1752198236833,0.1688,2948.2,2947.7,1.3878]
[1752198237002,8.138,2948.4,2947.8,0.4324]
[1752198237332,5.189,2948.3,2947.9,0.1696]
[1752198237533,5.189,2948.3,2948.0,0.4324]
[1752198237831,5.189,2948.2,2948.0,0.4324]
[1752198239137,8.3068,2948.4,2948.0,0.4324]
[1752198239314,5.22292607,2948.3,2948.0,0.4324]
[1752198239922,0.03392607,2948.3,2948.0,0.4324]
[1752198240246,5.187,2948.2,2948.0,0.4324]
[1752198241122,0.03392607,2948.3,2948.0,0.4324]
[1752198241442,5.186,2948.2,2948.0,0.4324]
[1752198242224,5.185,2948.1,2948.0,0.4324]
[1752198244237,5.185,2948.1,2947.9,0.1696]
[1752198244563,5.185,2948.1,2947.9,0.602]
[1752198244934,0.03392607,2948.0,2947.9,0.1696]
[1752198245528,1.11854868,2948.0,2947.3,0.001]
[1752198245846,5.185,2947.9,2947.5,0.1696]
[1752198246047,0.03392607,2947.8,2947.5,0.1696]
[1752198246219,5.185,2947.7,2947.5,0.1696]
[1752198246419,0.03392607,2947.6,2947.5,0.1696]
[1752198248755,5.185,2947.7,2947.5,0.1696]
[1752198252126,0.03392607,2947.6,2947.5,0.1696]
[1752198252740,0.47442607,2947.6,2947.5,0.1696]
[1752198252940,0.47442607,2947.6,2947.3,0.001]
[1752198253138,0.03392607,2947.6,2947.3,0.001]
[1752198253461,0.4405,2947.5,2947.3,0.001]
[1752198253640,5.21292607,2947.4,2947.3,0.001]
[1752198253839,5.65342607,2947.4,2947.3,0.001]
[1752198254668,6.76876868,2947.4,2947.3,0.001]
[1752198262270,0.7611,2947.7,2947.3,0.001]
[1752198262566,5.21192607,2947.6,2947.3,0.001]
[1752198263656,0.03392607,2947.6,2947.3,0.001]
[1752198263852,5.178,2947.5,2947.3,0.001]
[1752198264057,0.03392607,2947.4,2947.3,0.001]
[1752198265529,5.21192607,2947.4,2947.3,0.001]
[1752198266634,0.03392607,2947.4,2947.3,0.001]
[1752198266838,5.178,2947.4,2947.3,0.001]
[1752198267268,0.03392607,2947.5,2947.3,0.001]
[1752198267468,5.178,2947.4,2947.3,0.001]
[1752198272545,5.178,2947.4,2947.3,0.4338]
[1752198272871,5.178,2947.4,2947.3,0.001]
[1752198273249,0.20352607,2947.7,2947.3,0.001]
[1752198273451,5.178,2947.6,2947.3,0.001]
[1752198274078,0.03392607,2947.6,2947.3,0.001]
[1752198274281,5.177,2947.5,2947.3,0.001]
[1752198275683,0.03392607,2947.4,2947.3,0.001]
[1752198276268,5.177,2947.4,2947.3,0.4338]
[1752198277965,5.177,2947.4,2947.3,0.001]
[1752198289191,5.6324,2947.4,2947.3,0.001]
[1752198289599,6.31131868,2947.4,2947.3,0.001]
[1752198289787,6.48091868,2947.4,2947.3,0.001]
[1752198292515,5.83592607,2947.4,2947.3,0.001]
[1752198292719,0.65892607,2947.4,2947.3,0.001]
[1752198292921,5.83592607,2947.4,2947.3,0.001]
[1752198293722,0.4732,2947.8,2947.3,0.001]
[1752198293923,1.3048,2948.2,2947.5,0.7869]
[1752198294127,0.1696,2948.0,2947.5,0.9565]
[1752198294423,0.4732,2947.9,2947.5,0.9565]
[1752198294625,5.177,2947.8,2947.5,0.9565]
[1752198294787,0.4732,2947.9,2947.5,0.9565]
[1752198294788,5.176,2947.7,2947.5,0.9565]
[1752198295501,0.4732,2947.9,2947.5,0.9565]
[1752198295822,5.176,2947.8,2947.5,0.9565]
[1752198296022,5.176,2947.7,2947.5,0.9565]
[1752198296218,0.1696,2948.0,2947.5,0.9565]
[1752198296422,5.176,2947.9,2947.5,0.9565]
[1752198297322,5.6492,2947.9,2947.5,0.9565]
[1752198299016,0.4732,2947.8,2947.5,0.9565]
[1752198299221,5.20992607,2947.7,2947.5,0.9565]
[1752198299626,5.176,2947.7,2947.5,0.9565]
[1752198300029,5.176,2947.8,2947.6,0.1696]
[1752198300231,0.03392607,2948.1,2947.6,0.1696]
[1752198300232,0.03392607,2948.1,2947.7,0.4309]
[1752198300430,9.5732,2948.4,2947.7,6.66536949]
[1752198300431,0.03392607,2948.3,2947.7,6.66536949]
[1752198300733,0.4752,2948.8,2948.0,6.66536949]
[1752198300893,5.20992607,2948.7,2948.2,0.1688]
[1752198301225,0.4732,2948.6,2948.2,0.1688]
[1752198301428,0.03392607,2948.5,2948.2,0.1688]
[1752198301625,0.4732,2948.6,2948.2,0.1688]
[1752198302032,0.1708,2948.8,2948.2,0.1688]
[1752198302247,0.002,2948.8,2948.7,10.0]
[1752198302543,0.002,2948.8,2948.7,10.9636]
[1752198302720,0.002,2948.8,2948.7,11.3945]
[1752198303927,0.002,2948.8,2948.7,11.64996798]
[1752198306933,0.002,2948.8,2948.7,15.04129297]
[1752198307562,0.002,2948.8,2948.7,20.21529297]
[1752198307967,0.002,2948.8,2948.7,20.35087697]
[1752198308186,5.174,2949.8,2948.8,0.7694]
[1752198308456,0.50712607,2949.7,2948.9,16.66536949]
[1752198308659,0.50712607,2949.7,2949.5,0.1688]
[1752198308856,0.04,2949.9,2949.6,10.9382]
[1752198309163,0.5132,2949.9,2949.6,11.00660593]
[1752198309458,0.50712607,2949.8,2949.7,0.06840361]
[1752198310145,1.05712607,2949.8,2949.7,0.06840361]
[1752198310345,0.50712607,2949.8,2949.7,0.06840361]
[1752198311135,0.04,2949.9,2949.7,0.06840361]
[1752198311459,0.50712607,2949.8,2949.7,0.06840361]
[1752198312156,5.3818,2949.9,2949.7,0.83980361]
[1752198312157,0.04,2949.9,2949.7,0.83980361]
[1752198312358,5.213,2949.9,2949.7,1.00860361]
[1752198312928,0.04,2949.9,2949.8,10.0]
[1752198314547,0.04,2949.9,2949.8,10.4309]
[1752198315175,0.04,2949.9,2949.7,1.00860361]
[1752198315470,0.04,2949.9,2949.7,0.23720361]
[1752198315672,0.04,2949.9,2949.8,0.06840128]
[1752198316683,0.5132,2949.9,2949.8,0.06840128]
[1752198318586,6.2352,2949.9,2949.8,0.06840128]
[1752198318791,6.2352,2949.9,2948.0,0.1696]
[1752198318792,3.39063506,2949.3,2948.0,0.1696]
[1752198318993,3.39063506,2949.3,2947.3,0.7511]
[1752198318994,0.7762,2948.4,2947.3,0.7511]
[1752198319302,10.46892607,2948.3,2947.9,0.1696]
[1752198319449,0.03392607,2948.2,2947.9,0.1696]
[1752198319794,0.4732,2948.1,2947.9,0.1696]
[1752198319956,0.03392607,2948.2,2947.9,0.1696]
[1752198319957,0.4732,2948.0,2947.9,0.1696]
[1752198320393,0.8272,2947.9,2947.6,0.1696]
[1752198320551,10.433,2947.8,2947.6,0.1696]
[1752198320750,10.8865,2947.8,2947.6,0.1696]
[1752198320969,10.433,2947.8,2947.6,0.1696]
[1752198321179,0.4535,2947.7,2947.6,0.1696]
[1752198323198,0.48742607,2947.7,2947.6,0.1696]
[1752198323393,0.4535,2947.7,2947.6,0.1696]
[1752198324657,10.433,2947.8,2947.6,0.1696]
[1752198326807,10.433,2947.8,2947.7,0.8295]
[1752198326988,10.433,2947.8,2947.7,1.2669]
[1752198327363,10.433,2947.8,2947.7,0.8295]
[1752198329064,10.433,2947.8,2947.5,0.001]
[1752198329065,0.7609,2947.7,2947.5,0.001]
[1752198329361,0.03392607,2947.6,2947.5,0.001]
[1752198329568,0.48742607,2947.6,2947.5,0.001]
[1752198330561,0.4535,2947.6,2947.5,0.001]
[1752198331398,5.224,2947.6,2947.5,0.001]
[1752198331695,5.6775,2947.6,2947.5,0.001]
[1752198331864,0.48742607,2947.6,2947.5,0.001]
[1752198332319,5.70942607,2947.6,2947.5,0.001]
[1752198333790,6.82325792,2947.6,2947.5,0.001]
[1752198333987,7.37325792,2947.6,2947.5,0.001]
[1752198334376,12.86915037,2947.6,2947.5,0.001]
[1752198334576,12.8352243,2947.6,2947.5,0.001]
[1752198334963,7.6132243,2947.6,2947.5,0.001]
[1752198335170,12.8342243,2947.6,2947.5,0.001]
[1752198336901,7.6132243,2947.6,2947.5,0.001]
[1752198337098,12.8352243,2947.6,2947.5,0.001]
[1752198337504,12.8332243,2947.6,2947.5,0.001]
[1752198338113,12.8312243,2947.6,2947.5,0.001]
[1752198341493,13.3312243,2947.6,2947.5,0.001]
[1752198344828,16.72381488,2947.6,2947.5,0.001]
[1752198346614,26.72381488,2947.6,2947.5,0.001]
[1752198347608,26.98201101,2947.6,2947.5,0.001]
[1752198347822,26.98201101,2947.6,2947.3,0.001]
[1752198347823,3.94282079,2947.4,2947.3,0.001]
[1752198347996,24.36326051,2947.1,2947.0,0.001]
[1752198348204,29.03025296,2947.1,2947.0,0.001]
[1752198348400,34.69675296,2947.1,2947.0,0.001]
[1752198348702,16.48289245,2947.1,2947.0,0.001]
[1752198349013,21.69689245,2947.1,2947.0,0.001]
[1752198349218,21.69989245,2947.1,2947.0,0.001]
[1752198349414,11.69889245,2947.1,2947.0,0.001]
[1752198349637,6.48289245,2947.1,2947.0,0.001]
[1752198349937,11.69889245,2947.1,2947.0,0.001]
[1752198350135,12.8687817,2947.1,2947.0,0.001]
[1752198351016,7.6527817,2947.1,2947.0,0.001]
[1752198351333,12.8687817,2947.1,2947.0,0.001]
[1752198351721,12.8707817,2947.1,2947.0,0.001]
[1752198355537,12.8687817,2947.1,2947.0,0.001]
[1752198355742,12.8677817,2947.1,2947.0,0.001]
[1752198355945,7.6527817,2947.1,2947.0,0.001]
[1752198356150,12.8677817,2947.1,2947.0,0.001]
[1752198365545,22.8677817,2947.1,2947.0,0.001]
[1752198365750,26.76094786,2947.1,2947.0,0.001]
[1752198365979,26.57819214,2947.1,2947.0,0.001]
[1752198366348,27.30963352,2947.1,2947.0,0.001]
[1752198366583,26.57819214,2947.1,2947.0,0.001]
[1752198366781,21.36319214,2947.1,2947.0,0.001]
[1752198367096,26.6684776,2947.1,2947.0,0.001]
[1752198367253,17.97002598,2947.1,2947.0,0.001]
[1752198367580,23.17602598,2947.1,2947.0,0.001]
[1752198367979,7.97002598,2947.1,2947.0,0.001]
[1752198368177,13.17602598,2947.1,2947.0,0.001]
[1752198368948,13.67602598,2947.1,2947.0,0.001]
[1752198369149,8.47002598,2947.1,2947.0,0.001]
[1752198369350,13.67602598,2947.1,2947.0,0.001]
[1752198370053,13.3587817,2947.1,2947.0,0.001]
[1752198373176,16.75194786,2947.1,2947.0,0.001]
[1752198373378,13.3587817,2947.1,2947.0,0.001]
[1752198374159,5.71699245,2947.1,2947.0,0.001]
[1752198374575,10.91999245,2947.1,2947.0,0.001]
[1752198375175,5.21699245,2947.1,2947.0,0.001]
[1752198375388,4.66699245,2947.1,2947.0,0.001]
[1752198375663,4.83659245,2947.1,2947.0,0.001]
[1752198375864,5.38659245,2947.1,2947.0,0.001]
[1752198376060,4.83659245,2947.1,2947.0,0.001]
[1752198376704,4.83659245,2947.1,2947.0,0.4527]
[1752198377002,4.66699245,2947.1,2947.0,0.4527]
[1752198377212,4.66699245,2947.1,2947.0,1.2816]
[1752198377362,9.86899245,2947.1,2947.0,1.2816]
[1752198377564,4.66699245,2947.1,2947.0,1.2816]
[1752198377765,9.86899245,2947.1,2947.0,1.2816]
[1752198378366,4.66699245,2947.1,2947.0,1.2816]
[1752198378565,9.86799245,2947.1,2947.0,1.2816]
[1752198380992,10.41799245,2947.1,2947.0,0.001]
[1752198381172,11.59155169,2947.1,2947.0,0.001]
[1752198381583,12.04175169,2947.1,2947.0,0.001]
[1752198382502,12.54175169,2947.1,2947.0,0.001]
[1752198382699,13.36535169,2947.1,2947.0,0.001]
[1752198382905,12.86535169,2947.1,2947.0,0.001]
[1752198385385,12.86435169,2947.1,2947.0,0.001]
[1752198386203,12.41415169,2947.1,2947.0,0.001]
[1752198386510,11.59055169,2947.1,2947.0,0.001]
[1752198387006,12.04075169,2947.1,2947.0,0.001]
[1752198387505,12.54075169,2947.1,2947.0,0.001]
[1752198388196,6.34055169,2947.1,2947.0,0.001]
[1752198388401,10.56851852,2947.1,2947.0,0.001]
[1752198388607,11.08459245,2947.1,2947.0,0.001]
[1752198390098,4.66699245,2947.0,2946.5,0.1696]
[1752198390307,5.23192607,2946.9,2946.5,0.1696]
[1752198392027,5.23192607,2946.9,2946.6,0.05613327]
[1752198392209,4.66699245,2946.8,2946.6,0.05613327]
[1752198392387,9.89691852,2946.7,2946.6,0.05613327]
[1752198392587,11.61449245,2946.7,2946.6,0.05613327]
[1752198392782,11.61449245,2946.7,2946.6,0.01613327]
[1752198393497,10.41299245,2946.7,2946.6,0.01613327]
[1752198394506,10.86319245,2946.7,2946.6,0.01613327]
[1752198394703,12.0286417,2946.7,2946.6,0.01613327]
[1752198397315,11.5784417,2946.7,2946.6,0.01613327]
[1752198397520,6.3824417,2946.7,2946.6,0.01613327]
[1752198397727,4.66699245,2946.7,2946.6,0.01613327]
[1752198398021,10.02959245,2946.7,2946.6,0.01613327]
[1752198398924,4.66699245,2946.7,2946.6,0.01613327]
[1752198399436,9.85999245,2946.7,2946.6,0.23963327]
[1752198399930,9.85999245,2946.7,2946.6,0.01613327]
[1752198403327,9.85699245,2946.7,2946.6,0.01613327]
[1752198406336,9.85399245,2946.7,2946.6,0.01613327]
[1752198406521,9.85399245,2946.7,2946.6,0.23963327]
[1752198406820,9.85399245,2946.7,2946.6,0.40923327]
[1752198408437,4.66699245,2946.7,2946.6,0.40923327]
[1752198408630,9.85199245,2946.7,2946.6,0.40923327]
[1752198410113,9.85199245,2946.7,2946.6,0.18573327]
[1752198414542,4.66699245,2946.7,2946.6,0.18573327]
[1752198414845,9.85099245,2946.7,2946.6,0.22254864]
[1752198416144,4.66699245,2946.7,2946.6,0.22254864]
[1752198416346,9.85099245,2946.7,2946.6,0.22254864]
[1752198417148,4.66699245,2946.7,2946.6,0.22254864]
[1752198417350,9.85099245,2946.7,2946.6,0.22254864]
[1752198419851,4.66699245,2946.7,2946.6,0.22254864]
[1752198420070,11.6199917,2946.7,2946.6,0.05294864]
[1752198420237,12.1699917,2946.7,2946.6,0.05294864]
[1752198420420,6.1390917,2946.7,2946.6,0.05294864]
[1752198420621,10.4912917,2946.7,2946.6,0.05294864]
[1752198421163,10.9577917,2946.7,2946.6,0.05294864]
[1752198423269,12.3410917,2946.7,2946.6,0.05294864]
[1752198426558,0.55,2946.6,2946.1,0.1696]
[1752198426755,10.52101852,2946.5,2946.1,0.1696]
[1752198426955,0.4665,2946.4,2946.1,0.1696]
[1752198427255,5.21792607,2946.3,2946.1,0.1696]
[1752198427572,5.184,2946.2,2946.1,0.1696]
[1752198429096,0.03392607,2946.4,2946.1,0.1696]
[1752198429241,5.184,2946.3,2946.2,0.111]
[1752198429761,5.184,2946.3,2946.2,0.2806]
[1752198431351,5.184,2946.3,2946.2,0.1696]
[1752198434185,4.66699245,2946.5,2946.2,0.3931]
[1752198434393,4.66699245,2946.5,2946.3,10.14494087]
[1752198434549,4.66699245,2946.5,2946.4,0.5041]
[1752198434748,9.85099245,2946.5,2946.4,0.5041]
[1752198435685,4.66699245,2946.5,2946.4,0.5051]
[1752198435861,9.85099245,2946.5,2946.4,0.5051]
[1752198436047,5.184,2946.5,2946.4,10.5051]
[1752198436377,5.184,2946.5,2946.4,17.01698367]
[1752198436542,5.184,2946.5,2946.4,7.01698367]
[1752198436946,0.04,2946.9,2946.5,10.0]
[1752198437173,0.04,2946.9,2946.8,16.62288367]
[1752198437370,0.04,2946.9,2946.8,16.79248367]
[1752198437371,5.224,2946.9,2946.8,16.79248367]
[1752198438179,6.2129,2946.9,2946.4,0.001]
[1752198438514,0.55,2946.6,2946.4,0.001]
[1752198438720,5.76792607,2946.5,2946.4,0.001]
[1752198439098,6.23442607,2946.5,2946.4,0.001]
[1752198439287,6.95282868,2946.5,2946.4,0.001]
[1752198440087,1.76882868,2946.5,2946.4,0.001]
[1752198440329,5.6505,2946.5,2946.4,0.001]
[1752198441131,5.68442607,2946.5,2946.4,0.001]
[1752198441314,10.35141852,2946.5,2946.4,0.001]
[1752198441515,10.31749245,2946.5,2946.4,0.001]
[1752198442207,5.13349245,2946.5,2946.4,0.001]
[1752198442390,11.01472777,2946.5,2946.4,0.001]
[1752198442694,0.8112,2946.0,2944.5,0.17701001]
[1752198442896,1.3612,2945.4,2944.0,0.111]
[1752198443195,1.3612,2945.1,2944.0,0.111]
[1752198443408,0.55,2944.9,2944.0,0.111]
[1752198443717,0.55,2944.7,2944.0,0.111]
[1752198443919,10.411,2944.6,2944.0,0.111]
[1752198444223,10.411,2944.6,2944.1,10.0]
[1752198444793,10.411,2944.6,2944.0,6.62288367]
[1752198445326,10.8385,2944.6,2944.0,0.111]
[1752198445517,0.03392607,2944.5,2944.0,0.111]
[1752198445691,10.408,2944.4,2944.0,0.111]
[1752198446024,10.8355,2944.4,2944.0,0.111]
[1752198446228,10.408,2944.4,2944.0,0.111]
[1752198446430,0.4275,2944.3,2943.9,10.0]
[1752198446627,10.406,2944.2,2943.9,10.0]
[1752198447329,1.2356,2944.9,2944.1,6.51188367]
[1752198447633,10.406,2944.8,2944.3,0.111]
[1752198447996,0.03392607,2944.7,2944.3,0.111]
[1752198448325,10.406,2944.6,2944.3,0.111]
[1752198448502,0.8081,2944.9,2944.3,0.111]
[1752198448503,5.203,2944.5,2944.3,0.111]
[1752198448895,5.202,2944.4,2944.3,0.111]
[1752198449097,5.202,2944.4,2944.0,0.111]
[1752198449911,5.202,2944.4,2944.1,0.03396623]
[1752198451497,5.2,2944.3,2944.1,0.03396623]
[1752198451733,5.2,2944.3,2944.0,0.111]
[1752198452108,0.4275,2944.8,2944.0,0.111]
[1752198452320,5.2,2944.7,2944.1,0.03396623]
[1752198452623,5.2,2944.6,2944.1,0.03396623]
[1752198452820,4.66699245,2944.5,2944.4,0.1696]
[1752198453433,9.86599245,2944.5,2944.4,0.1696]
[1752198453947,9.86599245,2944.5,2944.4,16.68148367]
[1752198454135,4.66699245,2945.0,2944.5,10.0]
[1752198454341,5.198,2944.9,2944.8,10.0]
[1752198455255,4.66699245,2945.0,2944.8,10.0]
[1752198455548,5.199,2944.9,2944.6,10.111]
[1752198456249,0.46142607,2944.8,2944.3,0.111]